bitfinex/quotes_ETHUSD_20220118
["timestamp","ask_amount","ask_price","bid_price","bid_amount"]
[1642538015260,2.85935128,3115.5,3115.4,0.00341054]
[1642538016497,5.38728971,3115.5,3115.4,0.00341054]
[1642538017061,0.8028728,3115.3,3114.5,3.6382]
[1642538017266,0.80293,3115.1,3114.6,0.1283]
[1642538017465,3.18493984,3115.0,3114.6,0.13284739]
[1642538018063,1.0,3114.9,3114.6,0.13284739]
[1642538018321,1.2431,3114.9,3114.6,0.13284739]
[1642538018509,2.20130125,3114.7,3114.6,0.13284739]
[1642538020112,0.29876402,3114.8,3114.6,0.13284739]
[1642538020511,0.29876402,3114.8,3114.7,0.00397897]
[1642538022668,4.124,3115.3,3114.7,0.00397897]
[1642538022868,5.2218,3115.4,3114.8,0.1283]
[1642538023073,3.9934,3115.4,3114.5,2.92240166]
[1642538023275,3.9934,3115.4,3114.9,0.00284212]
[1642538023768,3.9934,3115.4,3115.3,1.89711166]
[1642538023982,0.94091247,3115.6,3115.3,2.19711166]
[1642538024169,0.94091247,3115.6,3115.3,0.3]
[1642538024375,0.94091247,3115.6,3114.8,0.13171054]
[1642538024569,0.1283,3115.5,3114.8,0.13171054]
[1642538024770,0.1283,3115.5,3114.9,0.00284212]
[1642538025670,0.9310658,3115.5,3115.4,2.12067227]
[1642538025915,0.8027658,3115.5,3115.4,2.12067227]
[1642538026116,0.8027658,3115.5,3115.3,0.3]
[1642538026418,0.8027658,3115.5,3114.9,0.00284212]
[1642538026616,1.6055658,3115.5,3114.9,0.00284212]
[1642538027421,1.37106224,3115.1,3114.9,0.00284212]
[1642538027622,2.97686174,3115.1,3114.9,0.00284212]
[1642538028347,2.97686174,3115.1,3114.5,0.00511581]
[1642538028722,0.80297,3114.9,3114.5,0.00511581]
[1642538028922,1.6059312,3114.9,3114.5,0.00511581]
[1642538029120,3.2119243,3114.9,3114.5,0.00511581]
[1642538030466,0.8029719,3114.7,3114.1,0.00738951]
[1642538034830,1.4955909,3114.9,3114.4,0.00568424]
[1642538035728,0.1283,3114.8,3114.4,0.00568424]
[1642538036132,1.1283,3114.8,3114.1,0.00738951]
[1642538036332,0.8030782,3114.7,3114.1,0.00738951]
[1642538036532,0.80311,3114.5,3114.1,0.00738951]
[1642538036732,0.80311,3114.5,3113.7,0.0096632]
[1642538036733,2.45339632,3114.5,3113.7,0.0096632]
[1642538036934,1.40865196,3113.9,3113.7,0.0096632]
[1642538038384,5.7783,3113.8,3113.7,0.0096632]
[1642538038584,6.7783,3113.8,3113.5,0.01080005]
[1642538038781,5.7783,3113.8,3113.5,0.01080005]
[1642538038981,5.7783,3113.8,3113.4,0.01136847]
[1642538039180,2.2211201,3113.7,3113.4,0.01136847]
[1642538039381,0.1283,3113.6,3113.4,0.01136847]
[1642538039986,5.81041,3113.5,3113.4,0.01136847]
[1642538040181,6.93871,3113.5,3113.4,0.01136847]
[1642538040579,9.81600111,3113.5,3112.6,0.01591586]
[1642538040838,1.10783839,3112.9,3112.6,0.01591586]
[1642538041024,1.92343839,3112.9,3112.6,0.01591586]
[1642538041223,0.8156,3112.9,3112.6,0.01591586]
[1642538041423,7.4112,3113.8,3112.7,0.1285]
[1642538041823,8.214382,3113.8,3113.0,0.80314]
[1642538042023,4.579682,3113.8,3113.0,3.17028826]
[1642538042227,1.15513593,3113.7,3113.1,0.01307374]
[1642538042427,1.28343593,3113.7,3113.1,0.01307374]
[1642538042827,2.01763236,3114.0,3113.2,0.1283]
[1642538043231,2.01763236,3114.0,3113.3,0.01193689]
[1642538043427,3.911,3114.3,3113.4,0.1283]
[1642538043829,1.53092715,3114.1,3113.5,0.01080005]
[1642538044029,1.53092715,3114.1,3113.6,0.80304]
[1642538044329,1.53092715,3114.1,3113.7,0.3096632]
[1642538044775,1.53092715,3114.1,3113.8,0.00909478]
[1642538045575,1.53092715,3114.1,3113.7,0.0096632]
[1642538045777,1.53092715,3114.1,3113.7,0.1379632]
[1642538045977,1.53092715,3114.1,3113.9,1.77755924]
[1642538046478,1.53092715,3114.1,3114.0,0.00795793]
[1642538047282,1.53092715,3114.1,3113.9,0.00852635]
[1642538047883,1.53092715,3114.1,3113.8,0.00909478]
[1642538049129,0.1283,3114.6,3113.8,0.00909478]
[1642538049332,1.2273,3114.7,3113.8,0.00909478]
[1642538050233,1.2273,3114.7,3113.9,1.60579]
[1642538050429,3.8521,3114.8,3114.1,0.80288]
[1642538050430,1.38019845,3114.5,3114.1,0.80288]
[1642538050831,1.38019845,3114.5,3114.2,0.00682108]
[1642538051136,1.38019845,3114.5,3114.1,0.00738951]
[1642538051333,1.38019845,3114.5,3114.1,0.13568951]
[1642538051731,1.38019845,3114.5,3114.2,0.00682108]
[1642538052179,1.38019845,3114.5,3114.3,1.84149275]
[1642538052381,1.38019845,3114.5,3114.3,2.14149275]
[1642538052580,1.38019845,3114.5,3114.4,0.00568424]
[1642538054783,0.8030349,3114.4,3113.9,0.00852635]
[1642538055183,1.6061349,3114.4,3113.9,0.00852635]
[1642538055385,1.6061349,3114.4,3113.8,0.00909478]
[1642538055583,1.6061349,3114.4,3114.0,2.72694938]
[1642538055839,1.69421778,3114.1,3114.0,2.72694938]
[1642538056027,1.69421778,3114.1,3114.0,3.02694938]
[1642538056229,1.69421778,3114.1,3114.0,3.03490731]
[1642538056829,1.6063123,3114.2,3114.0,0.30795793]
[1642538057031,1.6063123,3114.2,3114.0,0.00795793]
[1642538057235,1.6063123,3114.2,3114.1,0.00738951]
[1642538057836,1.7346123,3114.2,3114.1,0.00738951]
[1642538058040,1.7346123,3114.2,3113.5,0.01080005]
[1642538058236,0.8031198,3114.1,3113.5,0.01080005]
[1642538058637,0.1283,3114.2,3113.5,0.01080005]
[1642538059237,0.1283,3114.2,3113.6,2.72713976]
[1642538059438,0.9313758,3114.2,3113.6,2.72713976]
[1642538059678,0.9313758,3114.2,3113.7,0.0096632]
[1642538059679,1.7345158,3114.2,3113.7,0.0096632]
[1642538060580,1.7345158,3114.2,3113.8,2.72713976]
[1642538060982,1.7345158,3114.2,3113.9,0.00852635]
[1642538061380,0.9313758,3114.2,3113.9,0.00852635]
[1642538061879,0.9313758,3114.2,3113.4,2.95137153]
[1642538061880,4.8,3114.0,3113.4,2.95137153]
[1642538062083,4.8,3114.0,3113.1,8.31844337]
[1642538062084,1.33995414,3113.7,3113.1,8.31844337]
[1642538062284,1.33995414,3113.7,3113.5,0.0022737]
[1642538062683,1.33995414,3113.7,3113.0,0.00511581]
[1642538063535,2.14325414,3113.7,3113.0,0.00511581]
[1642538063734,0.803311,3113.6,3113.0,0.00511581]
[1642538064336,0.803311,3113.6,3112.8,5.72177488]
[1642538064337,0.803311,3113.6,3113.4,2.08783139]
[1642538064937,0.803311,3113.6,3113.4,2.38783139]
[1642538066038,0.803311,3113.6,3113.4,0.3]
[1642538066240,0.803311,3113.6,3112.9,0.00568424]
[1642538066441,0.803311,3113.6,3112.9,0.30568424]
[1642538066838,0.803311,3113.6,3113.0,0.00511581]
[1642538067882,0.803311,3113.6,3113.1,2.02521608]
[1642538068082,0.803311,3113.6,3113.1,0.3]
[1642538068286,0.803311,3113.6,3113.2,0.00397897]
[1642538068882,0.803311,3113.6,3113.0,0.00511581]
[1642538069284,0.803311,3113.6,3113.0,1.68522678]
[1642538069483,0.803311,3113.6,3113.0,0.00511581]
[1642538069784,0.1283,3113.5,3113.0,0.00511581]
[1642538069984,0.1283,3113.5,3112.8,0.1283]
[1642538069985,0.8034033,3113.3,3112.8,0.1283]
[1642538070184,0.1283,3113.2,3112.8,0.1283]
[1642538070382,0.80348,3113.1,3112.8,0.1283]
[1642538070587,0.1283,3113.0,3112.8,0.1283]
[1642538070836,1.1547,3113.0,3112.8,0.1283]
[1642538071024,2.1547,3113.0,3112.8,0.1283]
[1642538071224,1.18173297,3112.9,3112.8,0.1283]
[1642538071425,1.31003297,3112.9,3112.8,0.1283]
[1642538071627,1.31003297,3112.9,3112.8,0.12943685]
[1642538072027,1.18173297,3112.9,3112.8,0.12943685]
[1642538073431,1.18173297,3112.9,3112.8,0.00113685]
[1642538074430,1.18173297,3112.9,3112.5,0.00284212]
[1642538076678,1.18173297,3112.9,3112.6,0.9318]
[1642538077080,1.18173297,3112.9,3112.7,0.30170528]
[1642538082379,1.18173297,3112.9,3112.8,2.72765609]
[1642538085380,1.31003297,3112.9,3112.7,0.00170528]
[1642538085580,3.6785,3112.8,3112.7,0.00170528]
[1642538085835,3.6785,3112.8,3112.6,0.0022737]
[1642538086227,3.03552742,3112.8,3112.3,0.00397897]
[1642538086426,3.83904742,3112.8,3112.3,0.00397897]
[1642538086631,1.0,3112.7,3112.0,0.00109185]
[1642538086827,1.0,3112.7,3112.1,0.00113685]
[1642538086828,0.1285,3112.6,3112.1,0.00113685]
[1642538087027,0.92280527,3112.6,3112.1,0.00113685]
[1642538087230,0.00113685,3112.5,3112.1,0.00113685]
[1642538087430,0.9321693,3112.4,3112.1,0.00113685]
[1642538087631,2.19986874,3112.3,3112.1,0.00113685]
[1642538087830,2.05029824,3112.2,3112.1,0.00113685]
[1642538088931,1.24661824,3112.2,3112.1,0.00113685]
[1642538090481,2.05028824,3112.2,3112.1,0.00113685]
[1642538091086,2.05028824,3112.2,3112.0,0.00109185]
[1642538091087,5.65,3112.1,3112.0,0.00109185]
[1642538091284,8.66222521,3112.1,3112.0,0.00109185]
[1642538091484,7.42741345,3112.1,3112.0,0.00109185]
[1642538091687,6.4539,3112.0,3111.2,3.92694337]
[1642538091889,0.8039,3111.8,3111.2,3.92694337]
[1642538092086,1.27584651,3111.6,3111.3,0.00454738]
[1642538092286,0.1285,3111.5,3111.3,0.00454738]
[1642538093087,1.09508031,3110.9,3110.7,0.00795792]
[1642538093340,4.59860824,3111.4,3110.4,4.64225]
[1642538093526,0.1285,3111.3,3110.4,4.1384]
[1642538093926,0.8038222,3111.2,3110.4,4.1384]
[1642538094127,0.1285,3111.3,3110.4,4.1384]
[1642538094431,0.80393,3111.2,3110.4,4.1384]
[1642538094827,0.80393,3111.2,3110.3,2.03615]
[1642538095027,0.803892,3111.0,3110.3,2.03615]
[1642538095227,0.803892,3111.0,3110.4,0.00966319]
[1642538095426,1.42207077,3110.9,3110.4,0.81352319]
[1642538095626,1.42207077,3110.9,3110.4,0.00966319]
[1642538095827,1.42207077,3110.9,3110.5,2.11467233]
[1642538096028,1.42207077,3110.9,3110.5,2.41467233]
[1642538096229,1.42207077,3110.9,3110.6,0.00852635]
[1642538096430,0.27842839,3111.3,3110.7,0.80377]
[1642538096630,0.1285,3111.7,3110.7,0.80377]
[1642538096631,0.1285,3111.7,3110.7,1.10377]
[1642538096830,1.2354,3111.8,3110.7,1.10377]
[1642538096831,1.2354,3111.8,3111.3,1.67898028]
[1642538097081,0.80377,3111.8,3111.3,0.3]
[1642538097284,0.8037004,3111.9,3111.4,0.00397896]
[1642538097486,1.47063081,3111.8,3111.4,0.00397896]
[1642538097887,1.47063081,3111.8,3111.2,0.00511581]
[1642538098487,2.27439081,3111.8,3111.2,0.00511581]
[1642538098889,0.8037788,3111.7,3111.2,0.00511581]
[1642538099085,0.9322788,3111.7,3111.2,0.00511581]
[1642538099688,0.91479081,3111.7,3111.2,0.00511581]
[1642538099886,0.1285,3111.7,3111.2,0.00511581]
[1642538100287,1.47063081,3111.8,3111.2,0.00511581]
[1642538100587,1.47063081,3111.8,3111.2,1.00511581]
[1642538101026,1.47063081,3111.8,3111.3,0.00454738]
[1642538101229,1.47063081,3111.8,3111.4,0.1285]
[1642538101627,1.47063081,3111.8,3111.5,0.00341054]
[1642538101827,1.88376332,3111.7,3111.5,0.00341054]
[1642538102233,1.88376332,3111.7,3111.4,0.00397896]
[1642538102429,1.88376332,3111.7,3111.3,0.00454738]
[1642538102430,0.80381,3111.6,3111.3,0.00454738]
[1642538102629,0.80381,3111.6,3110.9,0.00682108]
[1642538102830,3.39715286,3111.6,3110.9,0.00682108]
[1642538103630,4.20096976,3111.6,3110.9,0.00682108]
[1642538104131,3.39715976,3111.6,3110.9,0.00682108]
[1642538104579,0.8038169,3111.6,3110.9,0.00682108]
[1642538105179,1.19511037,3111.2,3110.9,0.00682108]
[1642538108730,5.65,3111.0,3110.2,0.1285]
[1642538108928,3.54267872,3110.9,3110.2,0.1285]
[1642538109127,3.54267872,3110.9,3110.3,0.0022737]
[1642538109128,5.7785,3110.8,3110.3,0.0022737]
[1642538109328,2.69643303,3110.8,3110.3,0.0022737]
[1642538109531,0.1285,3110.8,3110.2,3.4134173]
[1642538109728,1.48411214,3110.7,3110.2,3.4134173]
[1642538109933,1.8986713,3110.5,3110.2,3.4134173]
[1642538110129,2.7027087,3110.5,3110.1,0.09981364]
[1642538110332,2.35,3110.3,3110.0,0.3]
[1642538110531,0.00113685,3110.4,3109.7,3.53962207]
[1642538110532,5.6,3110.2,3109.7,3.53962207]
[1642538110931,2.78481318,3110.3,3109.7,3.53962207]
[1642538110932,1.50394868,3110.1,3109.8,0.0022737]
[1642538111131,1.37544868,3110.1,3109.8,0.0022737]
[1642538111332,0.1285,3110.0,3109.8,0.0022737]
[1642538111530,1.76976801,3109.9,3109.8,0.0022737]
[1642538111930,1.76976801,3109.9,3109.8,2.72999479]
[1642538112185,1.37544868,3110.1,3109.8,2.72999479]
[1642538112589,1.37544868,3110.1,3109.9,0.00170527]
[1642538112590,4.5285,3110.0,3109.9,0.00170527]
[1642538113184,0.1285,3110.0,3109.9,0.00170527]
[1642538113587,2.9,3109.9,3109.4,2.67369506]
[1642538113786,2.30332125,3109.7,3109.2,0.3]
[1642538114088,0.1285,3110.0,3109.3,0.00341054]
[1642538114487,0.1285,3110.2,3109.3,0.00341054]
[1642538114690,0.1285,3110.2,3109.2,0.20341054]
[1642538114887,0.00454738,3110.1,3109.3,0.80409]
[1642538115090,0.00454738,3110.1,3109.2,0.20341054]
[1642538115288,0.00397896,3110.0,3109.2,0.20341054]
[1642538115688,0.00341054,3109.9,3109.2,1.00749054]
[1642538115932,0.00341054,3109.9,3109.4,2.30392467]
[1642538116132,0.00284211,3109.8,3109.4,2.30392467]
[1642538116334,0.00284211,3109.8,3109.4,3.40798467]
[1642538116534,0.00227369,3109.7,3109.5,1.1285]
[1642538116732,0.00227369,3109.7,3109.6,6.20395]
[1642538116933,3.95569997,3110.8,3109.6,6.44316]
[1642538117131,3.95569997,3110.8,3109.9,0.80387]
[1642538117335,2.04597336,3110.7,3109.9,1.10387]
[1642538117535,0.00795793,3110.7,3110.3,1.42180883]
[1642538117745,0.0073895,3110.6,3110.3,1.72180883]
[1642538118137,0.00682108,3110.5,3110.3,1.72180883]
[1642538118336,0.00682108,3110.5,3110.4,3.4285]
[1642538118535,0.1285,3111.3,3110.4,4.23228]
[1642538118737,0.1285,3111.4,3110.9,1.84022321]
[1642538118938,0.01080004,3111.2,3110.9,1.84022321]
[1642538119137,0.01080004,3111.2,3110.5,0.3]
[1642538119337,0.01023162,3111.1,3110.5,0.3]
[1642538119781,0.0096632,3111.0,3110.5,0.3]
[1642538119982,2.27961821,3111.0,3110.5,0.3]
[1642538120184,0.00909477,3110.9,3110.5,0.3]
[1642538120385,0.00909477,3110.9,3110.4,0.1285]
[1642538120584,0.00852635,3110.8,3110.4,0.1285]
[1642538120986,2.26995501,3111.0,3110.4,0.1285]
[1642538120987,0.00795793,3110.7,3110.4,0.1285]
[1642538121188,2.25408224,3110.5,3110.4,0.1285]
[1642538121586,0.00682108,3110.5,3110.4,0.1285]
[1642538122387,0.00682108,3110.5,3110.0,0.1285]
[1642538122688,0.00625266,3110.4,3110.0,0.1285]
[1642538122890,0.00625266,3110.4,3109.9,0.1285]
[1642538123089,0.00568423,3110.3,3109.9,0.1285]
[1642538123340,0.00568423,3110.3,3109.8,0.1285]
[1642538123530,0.37080668,3110.7,3109.7,0.1285]
[1642538123531,0.00511581,3110.2,3109.7,0.1285]
[1642538123730,0.00511581,3110.2,3109.6,0.1285]
[1642538123931,0.37080668,3110.7,3109.6,0.5935]
[1642538123932,1.25444941,3110.1,3109.6,0.5935]
[1642538124131,1.25444941,3110.1,3109.6,0.8935]
[1642538124331,0.00397896,3110.0,3109.6,1.8935]
[1642538124831,0.00341054,3109.9,3109.6,0.5935]
[1642538125132,0.00284211,3109.8,3109.6,0.5935]
[1642538125332,0.00284211,3109.8,3109.6,0.465]
[1642538125543,0.00227369,3109.7,3109.6,0.465]
[1642538126935,0.00227369,3109.7,3109.6,3.265]
[1642538127187,0.00227369,3109.7,3109.6,2.85]
[1642538127589,0.00227369,3109.7,3109.5,5.17097976]
[1642538127788,0.00227369,3109.7,3109.5,5.47097976]
[1642538127989,0.00170527,3109.6,3109.5,5.47097976]
[1642538128193,0.00170527,3109.6,3109.5,6.47097976]
[1642538128889,0.00170527,3109.6,3109.5,5.17097976]
[1642538129090,0.00170527,3109.6,3109.5,5.66697976]
[1642538129491,0.00170527,3109.6,3109.5,2.75911976]
[1642538131731,0.00170527,3109.6,3109.5,2.63061976]
[1642538132236,0.00170527,3109.6,3109.5,0.3]
[1642538132435,0.00170527,3109.6,3109.4,0.3]
[1642538132935,0.00113684,3109.5,3109.4,0.3]
[1642538133337,0.00113684,3109.5,3109.4,2.40052576]
[1642538133540,0.00113684,3109.5,3109.4,2.10052576]
[1642538133735,0.00113684,3109.5,3109.3,0.3]
[1642538134335,0.00113684,3109.5,3109.4,2.73015738]
[1642538137993,0.00113684,3109.5,3109.4,2.68015738]
[1642538140633,0.12963684,3109.5,3109.4,2.68015738]
[1642538140834,4.62963684,3109.5,3109.4,2.68015738]
[1642538141333,4.62963684,3109.5,3109.1,2.4994486]
[1642538141334,4.01306139,3109.2,3109.1,2.4994486]
[1642538141534,1.31306139,3109.2,3109.1,2.4994486]
[1642538141834,1.31306139,3109.2,3109.1,2.50058545]
[1642538142084,1.31306139,3109.2,3109.1,2.45058545]
[1642538142289,0.1285,3109.4,3109.1,2.4494486]
[1642538142488,2.07171449,3109.2,3109.1,2.4494486]
[1642538143693,2.07171449,3109.2,3109.1,2.3994486]
[1642538144090,0.1285,3109.4,3109.1,2.3994486]
[1642538144692,0.8043542,3109.3,3109.2,0.3]
[1642538144891,2.65694399,3109.5,3109.2,0.3]
[1642538144892,0.00113684,3109.5,3109.2,0.3]
[1642538145491,0.00113684,3109.5,3109.3,1.1376237]
[1642538146734,0.00113684,3109.5,3109.3,1.9416737]
[1642538147133,0.00113684,3109.5,3109.4,2.1903963]
[1642538147740,0.00113684,3109.5,3109.4,2.4903963]
[1642538148954,0.00113684,3109.5,3109.4,4.6918363]
[1642538149140,0.00113684,3109.5,3109.4,3.0838963]
[1642538149587,0.00113684,3109.5,3109.4,2.6188963]
[1642538150188,0.00113684,3109.5,3109.4,2.4903963]
[1642538150591,0.00113684,3109.5,3109.4,2.1903963]
[1642538152392,0.00113684,3109.5,3109.3,0.1285]
[1642538152793,1.60962684,3109.5,3109.3,0.1285]
[1642538153192,0.00113684,3109.5,3109.3,0.1285]
[1642538154238,0.00113684,3109.5,3109.4,1.18385453]
[1642538156438,0.00113684,3109.5,3109.4,1.48385453]
[1642538156741,0.00113684,3109.5,3109.4,11.3807876]
[1642538157196,1.67850908,3111.0,3109.5,5.65]
[1642538157197,0.82147039,3110.8,3109.5,5.65]
[1642538157397,0.82147039,3110.8,3109.8,0.80368]
[1642538157597,0.00568424,3110.5,3109.9,5.22677177]
[1642538157797,0.00568424,3110.5,3109.9,5.17749511]
[1642538157997,0.00511582,3110.4,3110.2,2.21639607]
[1642538158296,0.82147039,3110.8,3110.3,1.38632331]
[1642538158597,0.80384,3110.6,3110.1,0.465]
[1642538158796,0.80384,3110.6,3109.7,1.5935]
[1642538158999,0.00568424,3110.5,3109.7,0.5935]
[1642538159299,0.80408,3110.3,3109.7,0.465]
[1642538159497,3.13758867,3110.3,3109.6,4.34656892]
[1642538159696,0.80405,3110.1,3109.8,1.30334555]
[1642538160100,0.80405,3110.1,3109.3,5.04387155]
[1642538160101,5.76041,3109.9,3109.1,8.85856474]
[1642538160298,5.76041,3109.9,3109.1,5.61083464]
[1642538160299,0.01236045,3109.2,3109.1,5.61083464]
[1642538160499,0.1285,3109.6,3109.2,0.00170527]
[1642538160853,1.60856,3109.5,3109.2,0.00170527]
[1642538161041,2.0923096,3109.4,3109.3,1.11847153]
[1642538161441,2.0923096,3109.4,3109.3,1.11960837]
[1642538162043,2.0923096,3109.4,3109.3,1.41960837]
[1642538162343,0.00170527,3109.8,3109.3,1.41960837]
[1642538162543,0.00170527,3109.8,3109.5,0.80393]
[1642538162745,0.00113685,3109.7,3109.5,0.80393]
[1642538162942,0.00113685,3109.7,3109.5,1.80393]
[1642538163143,0.00284212,3110.0,3109.5,1.80393]
[1642538163343,0.80394,3109.9,3109.5,1.80393]
[1642538163544,0.8062137,3109.9,3109.5,1.80393]
[1642538163744,0.00170527,3109.8,3109.5,1.80393]
[1642538164046,0.00113685,3109.7,3109.5,2.10393]
[1642538164244,0.00113685,3109.7,3109.6,6.2435]
[1642538164448,0.00454739,3110.3,3109.6,9.8889724]
[1642538164697,0.00113685,3109.7,3109.6,13.33679832]
[1642538164896,0.00397897,3110.2,3109.6,19.15479832]
[1642538165096,0.80363,3111.4,3109.8,0.03199012]
[1642538165296,0.00227369,3110.1,3109.9,0.62330889]
[1642538165495,0.80363,3111.4,3110.1,5.68236771]
[1642538165698,0.83347225,3111.5,3110.1,5.68236771]
[1642538165699,0.82147039,3111.5,3110.5,0.80352]
[1642538165898,0.82147039,3111.5,3111.2,1.25688838]
[1642538166100,0.82147039,3111.5,3111.2,2.40648838]
[1642538166499,2.19071977,3111.4,3111.2,2.40648838]
[1642538166900,0.00682109,3111.3,3111.2,2.40648838]
[1642538167104,0.00682109,3111.3,3111.2,5.21567809]
[1642538168201,0.00682109,3111.3,3111.2,6.01913809]
[1642538168442,0.00682109,3111.3,3111.2,10.23413809]
[1642538168744,1.60672,3112.6,3111.3,5.65]
[1642538168947,1.60672,3112.6,3111.4,3.61016893]
[1642538169146,0.00568423,3112.3,3111.3,0.5935]
[1642538169346,1.73572,3112.2,3111.2,1.25688838]
[1642538169546,1.74083581,3112.2,3110.7,3.33988604]
[1642538169750,1.74083581,3112.2,3110.7,3.21138604]
[1642538169751,0.00454738,3112.1,3110.7,3.21138604]
[1642538169949,0.00454738,3112.1,3110.8,0.00284212]
[1642538169950,2.45233788,3112.0,3110.8,0.00284212]
[1642538170147,0.8039122,3111.4,3110.8,0.00284212]
[1642538170348,0.1285,3111.3,3110.8,0.00284212]
[1642538170750,0.4285,3111.3,3110.8,0.00284212]
[1642538170952,5.65,3111.2,3110.5,1.12702157]
[1642538171151,0.1285,3111.1,3110.5,1.12702157]
[1642538171348,0.8039043,3111.0,3110.6,0.00113685]
[1642538171549,0.8039043,3111.0,3110.1,3.21138604]
[1642538171550,7.25816,3110.8,3110.1,3.21138604]
[1642538171749,0.1285,3110.7,3110.2,0.00227369]
[1642538171948,1.1285,3110.7,3110.2,0.00227369]
[1642538172190,2.61444072,3110.6,3110.2,0.00227369]
[1642538172397,1.78888821,3110.4,3110.2,0.00227369]
[1642538172591,8.46330678,3110.3,3109.8,0.00454739]
[1642538172791,1.0,3110.2,3109.8,0.00454739]
[1642538172992,0.1285,3110.1,3109.8,0.00454739]
[1642538173389,1.73676,3110.1,3109.8,0.00454739]
[1642538173791,0.6,3110.0,3109.8,0.00454739]
[1642538173991,2.6785,3109.9,3109.8,0.00454739]
[1642538174192,4.94852712,3109.9,3109.8,0.00454739]
[1642538174591,2.39852712,3109.9,3109.8,0.00454739]
[1642538176844,3.39852712,3109.9,3109.8,0.00454739]
[1642538177444,5.65,3109.8,3109.7,0.00182895]
[1642538177643,1.8042189,3109.8,3109.7,0.00182895]
[1642538177840,2.4042189,3109.8,3109.7,0.00182895]
[1642538178043,0.8042189,3109.8,3109.7,0.00182895]
[1642538178339,4.68268482,3109.9,3109.7,0.00182895]
[1642538178340,3.07424712,3109.9,3109.7,0.00182895]
[1642538178839,0.3,3109.8,3109.7,0.00182895]
[1642538179039,0.6,3109.8,3109.7,0.00182895]
[1642538180583,1.4041225,3109.8,3109.7,0.00182895]
[1642538189194,1.4041225,3109.8,3108.3,5.99580018]
[1642538189195,6.44851137,3109.6,3108.3,5.99580018]
[1642538189395,3.85202845,3109.5,3108.8,0.05005]
[1642538189597,2.95665475,3109.5,3108.9,0.00511581]
[1642538190196,1.81766664,3109.4,3108.9,0.00511581]
[1642538190598,3.72632314,3109.4,3108.9,0.00511581]
[1642538190842,4.53065314,3109.4,3108.9,0.00511581]
[1642538191044,4.23065314,3109.4,3108.9,0.00511581]
[1642538191246,2.62199664,3109.4,3108.9,0.13361581]
[1642538191646,2.62199664,3109.4,3109.0,0.00454738]
[1642538191947,2.62199664,3109.4,3109.1,1.10144521]
[1642538191948,0.80426,3109.3,3109.1,1.10144521]
[1642538192251,1.81766664,3109.4,3109.2,0.00341054]
[1642538192546,3.9326,3110.3,3109.2,0.00341054]
[1642538192746,3.9326,3110.3,3109.2,3.16565216]
[1642538192947,3.9326,3110.3,3110.1,1.10336544]
[1642538193150,4.73656,3110.3,3110.1,1.10336544]
[1642538193348,0.80396,3110.3,3110.1,1.10336544]
[1642538194350,2.0840602,3110.2,3109.4,0.1285]
[1642538194618,0.80408,3110.0,3109.4,0.1285]
[1642538194802,0.80408,3110.0,3109.5,0.00170527]
[1642538195105,0.3,3109.9,3109.3,0.00284211]
[1642538195506,2.7124802,3109.9,3109.1,1.49931339]
[1642538195706,0.80422,3109.7,3109.1,1.49931339]
[1642538196003,1.9053376,3109.6,3109.2,0.00341054]
[1642538197408,3.5138276,3109.6,3109.2,0.00341054]
[1642538197610,0.80421,3109.5,3109.2,0.00341054]
[1642538197908,0.64394922,3109.5,3109.2,0.00341054]
[1642538198109,0.1285,3109.8,3109.2,0.00341054]
[1642538198339,0.13020527,3110.1,3109.2,0.00341054]
[1642538198534,0.804,3110.0,3109.3,0.80402]
[1642538198735,0.80513685,3110.0,3109.3,0.80402]
[1642538198936,0.80513685,3110.0,3109.4,0.13077369]
[1642538199338,2.25698102,3109.7,3109.5,0.00170527]
[1642538199543,0.80513685,3110.0,3109.6,1.54469731]
[1642538199941,0.80513685,3110.0,3109.6,0.1285]
[1642538199942,1.60822,3109.8,3109.6,0.1285]
[1642538200142,1.60822,3109.8,3109.5,0.00170527]
[1642538200540,1.60822,3109.8,3109.2,0.00341054]
[1642538200740,2.31812509,3109.7,3109.2,0.00341054]
[1642538200945,2.31812509,3109.7,3109.3,1.35367389]
[1642538201142,3.12218509,3109.7,3109.3,1.35367389]
[1642538201445,2.61812509,3109.7,3109.4,0.00227369]
[1642538201842,2.31812509,3109.7,3109.4,0.00227369]
[1642538202087,0.1285,3109.9,3109.4,0.00227369]
[1642538202292,0.00113685,3110.0,3109.8,1.40328083]
[1642538202491,0.3,3109.8,3109.4,0.00227369]
[1642538202894,1.76028076,3109.9,3109.1,0.13247896]
[1642538203094,0.804144,3109.8,3109.2,0.00341054]
[1642538203293,0.932644,3109.8,3109.2,0.00341054]
[1642538203496,1.60823,3109.8,3109.2,1.26601707]
[1642538203694,1.60823,3109.8,3109.1,0.13247896]
[1642538203894,1.60823,3109.8,3109.3,0.00284211]
[1642538204094,1.60823,3109.8,3109.2,0.80748054]
[1642538204095,0.80411,3109.8,3109.2,0.80748054]
[1642538204596,0.80411,3109.8,3109.3,0.30284211]
[1642538204797,0.80411,3109.8,3109.4,0.1285]
[1642538204996,0.80411,3109.8,3109.4,0.13077369]
[1642538205196,0.80411,3109.8,3109.5,0.00170527]
[1642538205396,2.86087479,3109.8,3109.5,0.00170527]
[1642538205597,2.86087479,3109.8,3109.4,0.00227369]
[1642538205842,2.86087479,3109.8,3109.3,0.00284211]
[1642538206038,2.86087479,3109.8,3109.4,0.0312134]
[1642538206435,2.86087479,3109.8,3109.5,0.00170527]
[1642538208248,2.65561764,3109.7,3109.5,0.00170527]
[1642538208446,1.60845,3109.7,3109.5,0.00170527]
[1642538208648,4.32377914,3109.7,3109.5,0.00170527]
[1642538208846,1.60845,3109.7,3109.5,0.00170527]
[1642538209447,1.73695,3109.7,3109.5,0.00170527]
[1642538210992,2.35,3109.6,3109.5,0.00170527]
[1642538212397,1.60845,3109.7,3109.5,0.00170527]
[1642538214541,3.94303486,3109.6,3109.5,2.21033314]
[1642538214938,3.94303486,3109.6,3109.5,2.20862787]
[1642538215139,0.49303486,3109.6,3109.5,2.20862787]
[1642538222239,0.49303486,3109.7,3109.5,2.20862787]
[1642538222440,0.49303486,3109.7,3109.5,5.40862787]
[1642538222641,0.49303486,3109.7,3109.6,4.40511684]
[1642538223041,0.49303486,3109.7,3109.6,0.80511684]
[1642538223440,0.49303486,3109.7,3109.6,2.94913217]
[1642538223644,0.00113685,3110.0,3109.6,6.90662224]
[1642538223645,0.49303486,3109.9,3109.6,6.90662224]
[1642538224142,1.5766837,3110.5,3109.8,0.80384]
[1642538224344,1.5766837,3110.5,3109.9,0.1285]
[1642538224602,0.0022737,3110.4,3110.3,1.51489136]
[1642538224800,0.0022737,3110.4,3110.3,0.1285]
[1642538225200,0.0022737,3110.4,3110.2,0.80378]
[1642538225401,0.0022737,3110.4,3110.3,0.1285]